Workbook

Sheet Instructions
B2: Introduction:
B3: This spreadsheet is designed to calculate discharge from individual measurements and to combine those measurements into what is called a discharge rating curve. This rating curve is used to convert a continuously measured record of stream depth into a continuous record of stream discharge. While it is relatively easy to measure stream depth continuously using an installed sensor station, the direct continuous measurement of discharge is much more complicated (and expensive). The total discharge, however, is a much more important value in measuring stream quality and quantification of transport of pollutants and other substances.
B4: The rating curve calculated by this spreadsheet is a simple linear curve.
B5: To use this spreadsheet, you must use it in Microsoft Excel 2007 or later. The calculations may not be correct in Microsoft Excel 2003 or earlier.
B6: The primary data this spreadsheet generates is the "Rating Equation - Discharge to Stage", which can be found in green in the "Rating Curve" sheet.
B7: After a rating curve has been developed, the discharge at any given stage can easily be calculated with the "Calculate Discharge" sheet.
B8: Detailed instructions on how to use each sheet are below and along with the worksheets you will be working in.
B9: Notes, identified as little red tabs in the worksheet, will help you to know what data to input. Equation comments, identified as little green tabs in the worksheet, will help you to know the equation being used to calculate the solution within that cell.
B11: Starting-off by Adding New Discharge Data for Ratings:
B12: 1. If you see a security warning, you must click that you trust this document to allow macros to run on this workbook. Without macros, you will not be able to easily add new ratings.
B13: 2. Click on the "Rating Curve" sheet.
B15: Explanations of Calculations:
B16: Although they cannot be modified, you should be able to see the formulas for all calculations in each worksheet. For the cross section and velocity profiles, a "segment" is defined as the space between two measurement points or between the first or last measurement point and the bank.
B17: * Stream Wetted Width - The distance between the REW and LEW. This may be measured or, if measurements are not safely possible, looked up from the StageToAreaPredictor spreadsheet.
B18: * Wetted Cross Sectional Area - The total area of water in one cross section of the stream. This may be measured or, if measurements are not safely possible, looked up from the StageToAreaPredictor spreadsheet.
B19: * Segment Width - The distance between two measurement points
B20: * Segment Area - Half the distance to the next measurement point plus half the distance to the previous measurment point multiplied by the measured depth
B21: * Segment Discharge - The segment area multiplied by the velocity measured in that segment, if velocity was measured
B22: * Measured Wetted Cross Sectional Area - The sum of all segment areas
B23: * Velocity/Area Total Discharge - The sum of all of the segment discharges
B24: * Mean Travel Time - The average of all travel times for a neutrally buoyant object across the same distance.
B25: * Mean Transect Velocity - The average velocity through the whole transect, calculated as the distance traveled by a neutrally buoyant object going through the transect divided by its mean travel time.
B26: * Neutrally Buoyant Object Total Discharge - The mean transect velocity multiplied by the cross sectional area (either measured or looked-up).
B28: Other Notes:
B29: Expect that there might be a LOT of variability in your rating curve.
B30: You must allow macros to run for everything to work correctly.
B31: The new discharge forms are created by copying a hidden sheet called "Blank Discharge Form." You should never change that worksheet.
B32: There is no password to unprotect sheets, but, PLEASE do not alter the formulas. Do not alter the macros, either.
B33: The new discharge forms are created by copying a hidden sheet called "Blank Discharge Form." This is done via a VBA macro which also links the results from the new sheet to the "Rating Curve" sheet.
B34: If at any point your sensor moves (even by a very small amount), you MUST recalculate the "Offset between Sensor Depth and Stage." This can be calculated by taking a very careful measurement of the stage (staff gauge height) and checking the depth reading on the sensor at exactly the same time. The stage minus the sensor depth is your new offset. Enter this new value in the cell labeled "Offset between Sensor Depth and Stage" on the "Rating Curve" worksheet.
B35: If at any point your staff gauge moves, you MUST recalculate the offset between the current location of the staff gauge and the new location of the staff gauge. If you do not carefully do this, any measurements taken prior to the movement of your staff gauge will be unusable! You can get a good estimate of the offset between the old and new locations of the staff gauge by checking the "Offset between Sensor Depth and Stage" immediately before and after moving the staff gauge. It would be better, however, to re-survey your transect. After moving the staff gauge, you must apply the offset between the old staff gauge height and the new staff gauge height to every rating point taken before the movement. That is, you must manually open every "Discharge Day X" sheet with data entered before the staff gauge was moved and subtract the offset between the old staff gauge location and the new staff gauge location from the measureed stage height on that "Discharge Day X" sheet. Because this can be difficult, never move your staff gauge without a very serious reason to do so!

Sheet Calculate Discharge
B1: Discharge Calculator
B2: After Rating Curve Development: 1) Enter either your measured staff gauge height (stage) or the sensor depth recorded by an installed depth sensor. -- Note: If you use the depth recorded by an installed depth sensor, you must also enter the offset between the sensor depth and the official stage on the staff gauge. 2) After entering data, the plot should show rating measurements you have taken in the past along with a star showing where the input stage falls on the line relative to those points. When Using: 1) You can use the rating curve to infer discharge based on depth readings being provided by your sensor station. 2) This data can be used for knowing discharge at distinct points in time or over a period of time based on the real-time sensor station data. 3) Remember to do supplemental discharge event measurements from time-to-time to maintain an accurate curve. 4) Monitor and check depth probe at sensor station when visiting to ensure accurate data collecting. | P2: Discharge Calculator Data Input
P3: *NOTE: The sensor-to-stage offset value WILL change if the sensor is moved or the sensor drifts over time; the stage (or depth on staff gauge) should always be considered to be the primary depth to use for rating.
P6: Staff Gauge Height (m): | Q6: 1
P8: --- OR ---
P10: Recorded Sensor Depth (mm):
P11: Sensor-to-Stage Offset (m):
P14: Stage Used (m): | Q14: =IF(StaffGaugeHeight<>"",StaffGaugeHeight,SensorDepth/1000+SensorOffset) -> 1
P17: Calculated Discharge (m3) | Q17: =RatingSlope*StageHeightForEstimate+RatingIntercept -> 0.6427805277
D20: Note For Fixing Appearance of Graph: Sizing and Layout of the graph is left to auto since different sites will produce different discharges, heights and depths. However, by staying on this automatic growth pattern, the graph can sometimes become distorted where datapoints are clumped together while the rest of the graph is open. To fix this, follow these steps: 1 - Unprotect the sheet via the "Review" tab and selecting "Unprotect Sheet". 2 - Left-click on the x-axis where the number labels are to select the axis then right-click the axis. 3 - In the dialog box, select "Format Axis". 4 - In the new window, take note of "Minimum" and "Maximum" where you can decide the extent of the x-axis being shown in the graph. 5 - Choose the "Fixed" option under these categories and type in the desired range for each extent. 6 - Hit Close once you have the desired x-axis extent; repeat these steps for the y-axis. 7 - Once the graph displays the datapoints and trendline clearly, reprotect the sheet via the "Review" tab and selecting "Protect Sheet".

Sheet Rating Curve
B1: Discharge Event Entry & Rating Curve | V1: Rating Curve Data
B2: Starting-off Tutorial: 1) Click the button to "Add A New Discharge Measurement." 2) After about a second, you will be directed to a new sheet named "Discharge Event X." (Where "X" is one number higher than the number of dishcarge measurements already recorded in this spreadsheet.) 3) 9 Warning dialog boxes will come up saying how there are already existing worksheets using similar names, say yes to all of the warnings. After Data Entry Into "Discharge Event X": 1) The new results should appear on your curve. 2) If you see errors or strange values in this sheet, chances are very high you made a mistake in entering data OR you clicked the "Add A New Discharge Measurement" button too many times. 3) Make sure that all results are entered correctly and that you do not have any extra un-used sheets. 4) Data in the "Discharge Event X" sheets can be corrected easily by clicking on the tabs and checking all values in the WHITE boxes. 5) There will need to be a minimum of 5 to 7 Discharge Events ranging from baseflow to peak storm-flow that provide different water depths and velocities. 6) Once you have a functioning rating curve, you can then click on to the "Calculate Discharge" tab. | N2: Average Offset between Sensor Depth and Stage: | T2: =AVERAGE(Z5:Z17)-AVERAGE(AA5:AA17) -> 0.1116333333 | V2: Event Number | W2: Date | X2: Start Time | Y2: End Time | Z2: Measured Stream Stage (m) | AA2: Recorded Sensor Depth (m) | AB2: Total Discharge (m3/s)
N5: Rating Equation - Discharge to Stage | V5: Discharge Event 1 | W5: ='Discharge Event 1'!Date -> 2017-07-13 | X5: ='Discharge Event 1'!StartTime -> 10:30:00 | Y5: ='Discharge Event 1'!StopTime -> 11:00:00 | Z5: ='Discharge Event 1'!StaffHeight -> 0.275 | AA5: ='Discharge Event 1'!SensorDepth / 1000 -> 0.1533 | AB5: ='Discharge Event 1'!Discharge -> 0.00745
N6: Total Discharge = | O6: ( | P6: =SLOPE('Rating Curve'!RatingDischarges,'Rating Curve'!RatingStages) -> 0.8429329037 | Q6: x Stage | R6: ) | S6: =IF(T6>=0,"+","") ->  | T6: =INTERCEPT('Rating Curve'!RatingDischarges,'Rating Curve'!RatingStages) -> -0.200152376 | V6: Discharge Event 2 | W6: ='Discharge Event 2'!Date -> 2017-08-21 | X6: ='Discharge Event 2'!StartTime -> 14:25:00 | Y6: ='Discharge Event 2'!StopTime -> 14:53:00 | Z6: ='Discharge Event 2'!StaffHeight -> 0.24 | AA6: ='Discharge Event 2'!SensorDepth / 1000 -> 0.1573 | AB6: ='Discharge Event 2'!Discharge -> 0.00533
V7: Discharge Event 3 | W7: ='Discharge Event 3'!Date -> 2018-01-23 | X7: ='Discharge Event 3'!StartTime -> 09:50:00 | Y7: ='Discharge Event 3'!StopTime -> 10:23:00 | Z7: ='Discharge Event 3'!StaffHeight -> 0.39 | AA7: ='Discharge Event 3'!SensorDepth / 1000 -> 0.2773 | AB7: ='Discharge Event 3'!Discharge -> 0.132946
N8: Rating Equation - Discharge to Stage plus Sensor Depth Offset | V8: Discharge Event 4 | W8: ='Discharge Event 4'!Date -> 2018-01-23 | X8: ='Discharge Event 4'!StartTime -> 09:47:00 | Y8: ='Discharge Event 4'!StopTime -> 10:15:00 | Z8: ='Discharge Event 4'!StaffHeight -> 0.395 | AA8: ='Discharge Event 4'!SensorDepth / 1000 -> 0.2773 | AB8: ='Discharge Event 4'!Discharge -> 0.1699625
N9: Total Discharge = | O9: ( | P9: =SLOPE('Rating Curve'!RatingDischarges,'Rating Curve'!RatingStages) -> 0.8429329037 | Q9: x SensorDepth | R9: ) | S9: =IF(T9>=0,"+","") ->  | T9: =IF(T2="","???", INTERCEPT('Rating Curve'!RatingDischarges,'Rating Curve'!RatingStages) +T2) -> -0.08851904265 | V9: Discharge Event 5 | W9: ='Discharge Event 5'!Date -> 2018-01-23 | X9: ='Discharge Event 5'!StartTime -> 11:05:00 | Y9: ='Discharge Event 5'!StopTime -> 11:45:00 | Z9: ='Discharge Event 5'!StaffHeight -> 0.45 | AA9: ='Discharge Event 5'!SensorDepth / 1000 -> 0.339 | AB9: ='Discharge Event 5'!Discharge -> 0.14289
V10: Discharge Event 6 | W10: ='Discharge Event 6'!Date -> 2018-01-23 | X10: ='Discharge Event 6'!StartTime -> 11:05:00 | Y10: ='Discharge Event 6'!StopTime -> 11:40:00 | Z10: ='Discharge Event 6'!StaffHeight -> 0.37 | AA10: ='Discharge Event 6'!SensorDepth / 1000 -> 0.246 | AB10: ='Discharge Event 6'!Discharge -> 0.127525
B23: Note For Deleting Discharge Events: If you have made major errors and want to remove a discharge measurement sheet, you must do the following (this should be considered only as a last resort!) 1 - Delete the offending worksheet by right-clicking on the worksheet tab on the bottom and selecting "delete." 2 - Unprotect the "Rating Curve" worksheet by clicking "Review" in the ribbon and then "Unprotect Sheet." There is no password. 3 - Delete the offending line in the rating table, which should now be filled with "#REF" by selecting those cells, right clicking, and selecting delete. Select "Shift cells UP" when asked. 4 - REPROTECT the "Rating Curve" worksheet by clicking "Review" in the ribbon and then "Protect Sheet." Use the default options and do not set a password.
I35: Note For Getting the Discharge Rating Curve Equation: When you are ready to fill out the Load Calculator: 1 - Take note of the green equation under the title "Rating Equation - Discharge to Stage". 2 - This will be the equation you will manually enter into the "Load Calculator" workbook to help calculate discharge. 3 - Be sure to either fill out or delete any blank "Discharge Event" worksheets, otherwise the equation will not appear. 4 - ALL Discharge Events require a staff guage height and a sensor depth in order for the offset to properly calculate.
I40: Note For Fixing Appearance of Graph: Sizing and Layout of the graph is left to auto since different sites will produce different discharges, heights and depths. However, by staying on this automatic growth pattern, the graph can sometimes become distorted where datapoints are clumped together while the rest of the graph is open. To fix this, follow these steps: 1 - Unprotect the sheet via the "Review" tab and selecting "Unprotect Sheet". 2 - Left-click on the x-axis where the number labels are to select the axis then right-click the axis. 3 - In the dialog box, select "Format Axis". 4 - In the new window, take note of "Minimum" and "Maximum" where you can decide the extent of the x-axis being shown in the graph. 5 - Choose the "Fixed" option under these categories and type in the desired range for each extent. 6 - Hit Close once you have the desired x-axis extent; repeat these steps for the y-axis. 7 - Once the graph displays the datapoints and trendline clearly, reprotect the sheet via the "Review" tab and selecting "Protect Sheet".

Sheet Discharge Event 1
B1: Discharge Event Entry Form | D1: Basic Metadata | H1: Cross Section and Velocity Measurements | N1: Alternative Data Inputs to Cross Section and Velocity Measurements | S1: Segment Calculations
B2: Starting-off Tutorial: 1) In the new "Discharge Day X" sheet, enter as much data from the "Stream Discharge Data" sheet into the WHITE boxes. -- Note: You should not be able to modify any of the grey or blue boxes. _____ 2) Completely fill out the "Basic Metadata" section. -- Note: Be sure to enter all times in EASTERN STANDARD TIME (EST; UTC-5); if the time recorded on your "Stream Discharge Data" sheet was in Eastern Daylight Time (EDT; UTC-4), you should subtract one hour from that time. _____ 3) Fill out the "Cross Section and Velocity Measurments" section with measurements only from right edge of water to left edge of water on your "Stream Dischrage Data" sheet. -- Note: Measurements between the water edges and the bank pins are not used to calculate discharge. _____ 4) If you measured a cross section, fill out [Points of Note], [Distance], [Water Depth] and [Comments] in the "Cross Section and Velocity Measurements" section. | G2: Point | S2: (Calculations from Cross Section and Velocity Measurements)
D3: Measurement Completed By: | E3: Bressler, Johnson, Hicks, Hachadoorian, Chambers
H4: Points of note: | I4: Distance (m) | J4: Water Depth (m) | K4: Velocity (m/s) | L4: Comment | S4: Segment Width (m) | T4: Segment Area (m2) | U4: Segment Discharge (m3/s) | W4: Possible Notes
D5: Stream Name: | E5: Rocky Run | G5: 1 | H5: LEW | I5: 3 | J5: 0 | K5: 0 | N5: Neutral Buoyant Object Measurement | S5: =IF(I5="","", IF( OR(H5="REW",H5="LEW"), IF(I6="", (I5-I4)/2, (I6-I5)/2), ( (I5-I4)/2 + (I6-I5)/2) ) ) -> 0.25 | T5: =IF(I5="","",S5*J5) -> 0 | U5: =IF(K5="","",T5*K5) -> 0 | W5: REW
D6: Location: | E6: Upper Rocky, DS of Hwy 200 | G6: 2 | I6: 3.5 | J6: 0.07 | K6: 0 | N6: 1. Distance | S6: =IF(I6="","", IF( OR(H6="REW",H6="LEW"), IF(I7="", (I6-I5)/2, (I7-I6)/2), ( (I6-I5)/2 + (I7-I6)/2) ) ) -> 0.45 | T6: 0.0315 | U6: 0 | W6: LEW
D7: SiteID: | E7: ROCK_US3 | G7: 3 | I7: 3.9 | J7: 0.14 | K7: 0 | N7: Start of float to Transect (m): | S7: =IF(I7="","", IF( OR(H7="REW",H7="LEW"), IF(I8="", (I7-I6)/2, (I8-I7)/2), ( (I7-I6)/2 + (I8-I7)/2) ) ) -> 0.4 | T7: 0.056 | U7: 0 | W7: RPIN
D8: Station Latitude / Longitude: | E8: 39.816792, -75.550789 | G8: 4 | I8: 4.3 | J8: 0.24 | K8: 0.01 | L8: estimate | N8: Transect to End of float (m): | S8: 0.4 | T8: 0.096 | U8: 0.00096 | W8: LPIN
D9: Date: | E9: 2017-07-13 | G9: 5 | I9: 4.7 | J9: 0.21 | K9: 0.01 | L9: estimate | N9: TOTAL Float Distance (m): | P9: =P7+P8 -> 0 | S9: 0.3 | T9: 0.063 | U9: 0.00063 | W9: RTOB
D10: Start Time in EST: | E10: 10:30:00 | G10: 6 | I10: 4.9 | J10: 0.2 | K10: 0.01 | N10: 2. Time | S10: 0.25 | T10: 0.05 | U10: 0.0005 | W10: LTOB
D11: Stop Time in EST: | E11: 11:00:00 | G11: 7 | I11: 5.2 | J11: 0.43 | K11: 0.01 | L11: estimate | N11: Travel Time (sec): Measure at least 5 Times | O11: Time 1: | S11: 0.35 | T11: 0.1505 | U11: 0.001505
D12: Staff Gauge Height (m): | E12: 0.275 | G12: 8 | I12: 5.6 | J12: 0.44 | K12: 0.01 | L12: estimate | O12: Time 2: | S12: 0.35 | T12: 0.154 | U12: 0.00154
D13: Recorded Sensor Depth (mm): | E13: 153.3 | G13: 9 | I13: 5.9 | J13: 0.44 | K13: 0.01 | O13: Time 3: | S13: 0.25 | T13: 0.11 | U13: 0.0011
D14: Staff Gage/Sensor Offset (m): | E14: 0.1217 | G14: 10 | I14: 6.1 | J14: 0.33 | K14: 0.01 | L14: estimate | O14: Time 4: | S14: 0.25 | T14: 0.0825 | U14: 0.000825
D15: Velocity Meter (if applicable): | E15: Marsh McBirney | G15: 11 | I15: 6.4 | J15: 0.13 | K15: 0.01 | O15: Time 5: | S15: 0.3 | T15: 0.039 | U15: 0.00039
D16: Calibration Date of Velocity Meter: | G16: 12 | I16: 6.7 | J16: 0.14 | K16: 0 | O16: Time 6: | S16: 0.45 | T16: 0.063 | U16: 0
G17: 13 | I17: 7.3 | J17: 0.12 | K17: 0 | O17: Time 7: | S17: 0.31 | T17: 0.0372 | U17: 0
D18: Other Notes: | G18: 14 | H18: REW | I18: 7.32 | J18: 0 | K18: 0 | O18: Time 8: | S18: 0.01 | T18: 0 | U18: 0
G19: 15 | O19: Time 9:
G20: 16 | O20: Time 10:
G21: 17
G22: 18 | N22: Mean Travel Time (sec): | P22: =IF(NumberTravelTimes > 0, AVERAGE(TravelTimes), 0) -> 0
B23: _____ 5) If you measured velocities with a velocity meter, also fill out the [Velocity] in the "Cross Section and Velocity Measurements" section. ______ 6) If you used a neutrally buoyant object, instead, to measure velocity, fill out [Float Distance] and [Time] in the "Neutral Buoyant Object Measurement" section. ______ 7) If you measured velocities with a hand-held flow meter, instead, fill out the [Velocity] in the "Cross Section and Velocity Measurements" section. ______ 8) If you did NOT measure any cross section data, fill out the [Predicted Stream Wetted Width] and [Predicted Wetted Cross Sectional Area] under the appropriate section where you took "Alternative Data Inputs to Cross Section and Velocity Measurements" -- Note: Data found on the*StageToAreaPredictor* spreadsheet ______ 9) After you have finished entering your data, go back to the "Rating Curve" sheet. | G23: 19 | N23: Mean Transect Velocity (m/sec): | P23: =FloatDistance/MeanTravelTime*0.76 -> 
G24: 20 | N24: 3. Area
G25: 21 | N25: Measured Values from Cross Section
G26: 22 | N26: Stream Wetted Width (m): | P26: =MeasuredWettedWidth -> 4.32
G27: 23 | N27: Cross Sectional Area (m2): | P27: =MeasuredCrossSectionalArea -> 0.9327
G28: 24 | N28: --- OR ---
D29: Results | G29: 25 | N29: Estimated Values from Stage to Area Predictor
D30: Calculated Total Discharge (m3/s): | E30: =IF(HFMDischarge > 0, HFMDischarge, IF(AreaVelocityDischarge>0, AreaVelocityDischarge, NBODischarge)) -> 0.00745 | G30: 26 | N30: Predicted Wetted Cross Sectional Area (m2):
G31: 27 | N31: 4. Result
D32: Stream Wetted Width (m): | E32: =IF(WettedWidthFromSAP > 0, WettedWidthFromSAP, IF(MeasuredWettedWidth > 0, MeasuredWettedWidth, WettedWidthFromStage)) -> 4.32 | G32: 28 | N32: Total Discharge (m3/sec): | P32: =IF(CrossSectionalAreaFromStage>0, CrossSectionalAreaFromStage*MeanVelocity, CrossSectionalArea*MeanVelocity) -> 
G33: 29
D34: Stream Cross Sectional Area (m2): | E34: =IF(CrossSectionalAreaFromSAP > 0, CrossSectionalAreaFromSAP, IF(MeasuredCrossSectionalArea > 0, MeasuredCrossSectionalArea, CrossSectionalAreaFromStage)) -> 0.9327 | G34: 30
G35: 31 | N35: Handheld Flow Meter Measurement
G36: 32 | N36: 1. Velocity
G37: 33 | N37: Flow Velocity (m/sec): Measure at least 5 Times | O37: Velocity 1:
G38: 34 | O38: Velocity 2:
G39: 35 | O39: Velocity 3:
G40: 36 | O40: Velocity 4:
G41: 37 | O41: Velocity 5:
G42: 38 | O42: Velocity 6:
G43: 39 | O43: Velocity 7:
G44: 40 | O44: Velocity 8:
G45: 41 | O45: Velocity 9:
G46: 42 | O46: Velocity 10:
G47: 43
G48: 44 | N48: Mean Flow Meter Velocity (m/sec): | P48: =IF(NumberFlowTimes>0,AVERAGE(FlowTimes),0) -> 0
G49: 45 | N49: 2. Area
G50: 46 | N50: Estimated Values from Stage to Area Predictor
G51: 47 | N51: Predicted Wetted Cross Sectional Area (m2):
G52: 48 | N52: 3. Result
G53: 49 | N53: Total Discharge (m3/sec): | P53: =MeanFlowMeterVelocity*CrossSectionalAreaFromSAP -> 0
G54: 50
S55: =SUM(S$5:$S$54) -> 4.32 | T55: =SUM(T$5:$T$54) -> 0.9327 | U55: =SUM(U$5:$U$54) -> 0.00745 | V55: Total of Segments:

Sheet Discharge Event 2
B1: Discharge Event Entry Form | D1: Basic Metadata | H1: Cross Section and Velocity Measurements | N1: Alternative Data Inputs to Cross Section and Velocity Measurements | S1: Segment Calculations
B2: Starting-off Tutorial: 1) In the new "Discharge Day X" sheet, enter as much data from the "Stream Discharge Data" sheet into the WHITE boxes. -- Note: You should not be able to modify any of the grey or blue boxes. _____ 2) Completely fill out the "Basic Metadata" section. -- Note: Be sure to enter all times in EASTERN STANDARD TIME (EST; UTC-5); if the time recorded on your "Stream Discharge Data" sheet was in Eastern Daylight Time (EDT; UTC-4), you should subtract one hour from that time. _____ 3) Fill out the "Cross Section and Velocity Measurments" section with measurements only from right edge of water to left edge of water on your "Stream Dischrage Data" sheet. -- Note: Measurements between the water edges and the bank pins are not used to calculate discharge. _____ 4) If you measured a cross section, fill out [Points of Note], [Distance], [Water Depth] and [Comments] in the "Cross Section and Velocity Measurements" section. | G2: Point | S2: (Calculations from Cross Section and Velocity Measurements)
D3: Measurement Completed By: | E3: Bressler, Chambers
H4: Points of note: | I4: Distance (m) | J4: Water Depth (m) | K4: Velocity (m/s) | L4: Comment | S4: Segment Width (m) | T4: Segment Area (m2) | U4: Segment Discharge (m3/s) | W4: Possible Notes
D5: Stream Name: | E5: Rocky Run | G5: 1 | H5: LEW | I5: 0 | J5: 0 | K5: 0 | N5: Neutral Buoyant Object Measurement | S5: =IF(I5="","", IF( OR(H5="REW",H5="LEW"), IF(I6="", (I5-I4)/2, (I6-I5)/2), ( (I5-I4)/2 + (I6-I5)/2) ) ) -> 0.1 | T5: =IF(I5="","",S5*J5) -> 0 | U5: =IF(K5="","",T5*K5) -> 0 | W5: REW
D6: Location: | E6: Upper Rocky, DS of Hwy 200 | G6: 2 | I6: 0.2 | J6: 0.03 | K6: 0.01 | N6: 1. Distance | S6: =IF(I6="","", IF( OR(H6="REW",H6="LEW"), IF(I7="", (I6-I5)/2, (I7-I6)/2), ( (I6-I5)/2 + (I7-I6)/2) ) ) -> 0.2 | T6: 0.006 | U6: 6e-05 | W6: LEW
D7: SiteID: | E7: ROCK_US3 | G7: 3 | I7: 0.4 | J7: 0.05 | K7: 0.01 | N7: Start of float to Transect (m): | S7: =IF(I7="","", IF( OR(H7="REW",H7="LEW"), IF(I8="", (I7-I6)/2, (I8-I7)/2), ( (I7-I6)/2 + (I8-I7)/2) ) ) -> 0.25 | T7: 0.0125 | U7: 0.000125 | W7: RPIN
D8: Station Latitude / Longitude: | E8: 39.816792, -75.550789 | G8: 4 | I8: 0.7 | J8: 0.1 | K8: 0.03 | N8: Transect to End of float (m): | S8: 0.25 | T8: 0.025 | U8: 0.00075 | W8: LPIN
D9: Date: | E9: 2017-08-21 | G9: 5 | I9: 0.9 | J9: 0.13 | K9: 0.09 | N9: TOTAL Float Distance (m): | P9: =P7+P8 -> 0 | S9: 0.15 | T9: 0.0195 | U9: 0.001755 | W9: RTOB
D10: Start Time in EST: | E10: 14:25:00 | G10: 6 | I10: 1 | J10: 0.14 | K10: 0.08 | N10: 2. Time | S10: 0.15 | T10: 0.021 | U10: 0.00168 | W10: LTOB
D11: Stop Time in EST: | E11: 14:53:00 | G11: 7 | I11: 1.2 | J11: 0.12 | K11: 0.04 | N11: Travel Time (sec): Measure at least 5 Times | O11: Time 1: | S11: 0.2 | T11: 0.024 | U11: 0.00096
D12: Staff Gauge Height (m): | E12: 0.24 | G12: 8 | H12: REW | I12: 1.4 | J12: 0 | K12: 0 | O12: Time 2: | S12: 0.1 | T12: 0 | U12: 0
D13: Recorded Sensor Depth (mm): | E13: 157.3 | G13: 9 | O13: Time 3:
D14: Staff Gage/Sensor Offset (m): | E14: 0.0827 | G14: 10 | O14: Time 4:
D15: Velocity Meter (if applicable): | E15: Swoffer, Stroud #1 | G15: 11 | O15: Time 5:
D16: Calibration Date of Velocity Meter: | G16: 12 | O16: Time 6:
G17: 13 | O17: Time 7:
D18: Other Notes: | E18: Did discharge measurements ~15m upstream of bank pins - flow was too slow to do it at the established cross section - instead measrued in upstream riffle section. First visit since new CTD replaced 7/24/17 damaged one | G18: 14 | O18: Time 8:
G19: 15 | O19: Time 9:
G20: 16 | O20: Time 10:
G21: 17
G22: 18 | N22: Mean Travel Time (sec): | P22: =IF(NumberTravelTimes > 0, AVERAGE(TravelTimes), 0) -> 0
B23: _____ 5) If you measured velocities with a velocity meter, also fill out the [Velocity] in the "Cross Section and Velocity Measurements" section. ______ 6) If you used a neutrally buoyant object, instead, to measure velocity, fill out [Float Distance] and [Time] in the "Neutral Buoyant Object Measurement" section. ______ 7) If you measured velocities with a hand-held flow meter, instead, fill out the [Velocity] in the "Cross Section and Velocity Measurements" section. ______ 8) If you did NOT measure any cross section data, fill out the [Predicted Stream Wetted Width] and [Predicted Wetted Cross Sectional Area] under the appropriate section where you took "Alternative Data Inputs to Cross Section and Velocity Measurements" -- Note: Data found on the*StageToAreaPredictor* spreadsheet ______ 9) After you have finished entering your data, go back to the "Rating Curve" sheet. | G23: 19 | N23: Mean Transect Velocity (m/sec): | P23: =FloatDistance/MeanTravelTime*0.76 -> 
G24: 20 | N24: 3. Area
G25: 21 | N25: Measured Values from Cross Section
G26: 22 | N26: Stream Wetted Width (m): | P26: =MeasuredWettedWidth -> 1.4
G27: 23 | N27: Cross Sectional Area (m2): | P27: =MeasuredCrossSectionalArea -> 0.108
G28: 24 | N28: --- OR ---
D29: Results | G29: 25 | N29: Estimated Values from Stage to Area Predictor
D30: Calculated Total Discharge (m3/s): | E30: =IF(HFMDischarge > 0, HFMDischarge, IF(AreaVelocityDischarge>0, AreaVelocityDischarge, NBODischarge)) -> 0.00533 | G30: 26 | N30: Predicted Wetted Cross Sectional Area (m2):
G31: 27 | N31: 4. Result
D32: Stream Wetted Width (m): | E32: =IF(WettedWidthFromSAP > 0, WettedWidthFromSAP, IF(MeasuredWettedWidth > 0, MeasuredWettedWidth, WettedWidthFromStage)) -> 1.4 | G32: 28 | N32: Total Discharge (m3/sec): | P32: =IF(CrossSectionalAreaFromStage>0, CrossSectionalAreaFromStage*MeanVelocity, CrossSectionalArea*MeanVelocity) -> 
G33: 29
D34: Stream Cross Sectional Area (m2): | E34: =IF(CrossSectionalAreaFromSAP > 0, CrossSectionalAreaFromSAP, IF(MeasuredCrossSectionalArea > 0, MeasuredCrossSectionalArea, CrossSectionalAreaFromStage)) -> 0.108 | G34: 30
G35: 31 | N35: Handheld Flow Meter Measurement
G36: 32 | N36: 1. Velocity
G37: 33 | N37: Flow Velocity (m/sec): Measure at least 5 Times | O37: Velocity 1:
G38: 34 | O38: Velocity 2:
G39: 35 | O39: Velocity 3:
G40: 36 | O40: Velocity 4:
G41: 37 | O41: Velocity 5:
G42: 38 | O42: Velocity 6:
G43: 39 | O43: Velocity 7:
G44: 40 | O44: Velocity 8:
G45: 41 | O45: Velocity 9:
G46: 42 | O46: Velocity 10:
G47: 43
G48: 44 | N48: Mean Flow Meter Velocity (m/sec): | P48: =IF(NumberFlowTimes>0,AVERAGE(FlowTimes),0) -> 0
G49: 45 | N49: 2. Area
G50: 46 | N50: Estimated Values from Stage to Area Predictor
G51: 47 | N51: Predicted Wetted Cross Sectional Area (m2):
G52: 48 | N52: 3. Result
G53: 49 | N53: Total Discharge (m3/sec): | P53: =MeanFlowMeterVelocity*CrossSectionalAreaFromSAP -> 0
G54: 50
S55: =SUM(S$5:$S$54) -> 1.4 | T55: =SUM(T$5:$T$54) -> 0.108 | U55: =SUM(U$5:$U$54) -> 0.00533 | V55: Total of Segments:

Sheet Discharge Event 3
B1: Discharge Event Entry Form | D1: Basic Metadata | H1: Cross Section and Velocity Measurements | N1: Alternative Data Inputs to Cross Section and Velocity Measurements | S1: Segment Calculations
B2: Starting-off Tutorial: 1) In the new "Discharge Day X" sheet, enter as much data from the "Stream Discharge Data" sheet into the WHITE boxes. -- Note: You should not be able to modify any of the grey or blue boxes. _____ 2) Completely fill out the "Basic Metadata" section. -- Note: Be sure to enter all times in EASTERN STANDARD TIME (EST; UTC-5); if the time recorded on your "Stream Discharge Data" sheet was in Eastern Daylight Time (EDT; UTC-4), you should subtract one hour from that time. _____ 3) Fill out the "Cross Section and Velocity Measurments" section with measurements only from right edge of water to left edge of water on your "Stream Dischrage Data" sheet. -- Note: Measurements between the water edges and the bank pins are not used to calculate discharge. _____ 4) If you measured a cross section, fill out [Points of Note], [Distance], [Water Depth] and [Comments] in the "Cross Section and Velocity Measurements" section. | G2: Point | S2: (Calculations from Cross Section and Velocity Measurements)
D3: Measurement Completed By: | E3: Jeff Chambers and Kim Hachadoorian
H4: Points of note: | I4: Distance (m) | J4: Water Depth (m) | K4: Velocity (m/s) | L4: Comment | S4: Segment Width (m) | T4: Segment Area (m2) | U4: Segment Discharge (m3/s) | W4: Possible Notes
D5: Stream Name: | E5: Rocky Run | G5: 1 | H5: LEW | I5: 2.8 | J5: 0 | K5: 0 | N5: Neutral Buoyant Object Measurement | S5: =IF(I5="","", IF( OR(H5="REW",H5="LEW"), IF(I6="", (I5-I4)/2, (I6-I5)/2), ( (I5-I4)/2 + (I6-I5)/2) ) ) -> 0.25 | T5: =IF(I5="","",S5*J5) -> 0 | U5: =IF(K5="","",T5*K5) -> 0 | W5: REW
D6: Location: | E6: Upper Rocky, DS of Hwy 200 | G6: 2 | I6: 3.3 | J6: 0.16 | K6: 0.01 | N6: 1. Distance | S6: =IF(I6="","", IF( OR(H6="REW",H6="LEW"), IF(I7="", (I6-I5)/2, (I7-I6)/2), ( (I6-I5)/2 + (I7-I6)/2) ) ) -> 0.45 | T6: 0.072 | U6: 0.00072 | W6: LEW
D7: SiteID: | E7: ROCK_US3 | G7: 3 | I7: 3.7 | J7: 0.24 | K7: 0.1 | N7: Start of float to Transect (m): | S7: =IF(I7="","", IF( OR(H7="REW",H7="LEW"), IF(I8="", (I7-I6)/2, (I8-I7)/2), ( (I7-I6)/2 + (I8-I7)/2) ) ) -> 0.35 | T7: 0.084 | U7: 0.0084 | W7: RPIN
D8: Station Latitude / Longitude: | E8: 39.816792, -75.550789 | G8: 4 | I8: 4 | J8: 0.3 | K8: 0.25 | N8: Transect to End of float (m): | S8: 0.25 | T8: 0.075 | U8: 0.01875 | W8: LPIN
D9: Date: | E9: 2018-01-23 | G9: 5 | I9: 4.2 | J9: 0.3 | K9: 0.1 | N9: TOTAL Float Distance (m): | P9: =P7+P8 -> 0 | S9: 0.2 | T9: 0.06 | U9: 0.006 | W9: RTOB
D10: Start Time in EST: | E10: 09:50:00 | G10: 6 | I10: 4.4 | J10: 0.47 | K10: 0.12 | N10: 2. Time | S10: 0.2 | T10: 0.094 | U10: 0.01128 | W10: LTOB
D11: Stop Time in EST: | E11: 10:23:00 | G11: 7 | I11: 4.6 | J11: 0.36 | K11: 0.3 | N11: Travel Time (sec): Measure at least 5 Times | O11: Time 1: | S11: 0.2 | T11: 0.072 | U11: 0.0216
D12: Staff Gauge Height (m): | E12: 0.39 | G12: 8 | I12: 4.8 | J12: 0.38 | K12: 0.3 | O12: Time 2: | S12: 0.2 | T12: 0.076 | U12: 0.0228
D13: Recorded Sensor Depth (mm): | E13: 277.3 | G13: 9 | I13: 5 | J13: 0.4 | K13: 0.15 | O13: Time 3: | S13: 0.2 | T13: 0.08 | U13: 0.012
D14: Staff Gage/Sensor Offset (m): | E14: 0.1127 | G14: 10 | I14: 5.2 | J14: 0.52 | K14: 0.15 | O14: Time 4: | S14: 0.2 | T14: 0.104 | U14: 0.0156
D15: Velocity Meter (if applicable): | E15: Swoffer #1 | G15: 11 | I15: 5.4 | J15: 0.57 | K15: 0.06 | O15: Time 5: | S15: 0.2 | T15: 0.114 | U15: 0.00684
D16: Calibration Date of Velocity Meter: | E16: Fall 2017 | G16: 12 | I16: 5.6 | J16: 0.63 | K16: 0.03 | O16: Time 6: | S16: 0.2 | T16: 0.126 | U16: 0.00378
G17: 13 | I17: 5.8 | J17: 0.58 | K17: 0.01 | L17: Estimate | O17: Time 7: | S17: 0.2 | T17: 0.116 | U17: 0.00116
D18: Other Notes: | E18: Dave B & Matt G did an additional measurement at the same time with the MM #2 (Event 4) | G18: 14 | I18: 6 | J18: 0.65 | K18: 0.01 | O18: Time 8: | S18: 0.2 | T18: 0.13 | U18: 0.0013
G19: 15 | I19: 6.2 | J19: 0.65 | K19: 0 | O19: Time 9: | S19: 0.2 | T19: 0.13 | U19: 0
G20: 16 | I20: 6.4 | J20: 0.37 | K20: 0.01 | L20: Estimate | O20: Time 10: | S20: 0.2 | T20: 0.074 | U20: 0.00074
G21: 17 | I21: 6.6 | J21: 0.38 | K21: 0 | S21: 0.2 | T21: 0.076 | U21: 0
G22: 18 | I22: 6.8 | J22: 0.36 | K22: 0 | N22: Mean Travel Time (sec): | P22: =IF(NumberTravelTimes > 0, AVERAGE(TravelTimes), 0) -> 0 | S22: 0.2 | T22: 0.072 | U22: 0
B23: _____ 5) If you measured velocities with a velocity meter, also fill out the [Velocity] in the "Cross Section and Velocity Measurements" section. ______ 6) If you used a neutrally buoyant object, instead, to measure velocity, fill out [Float Distance] and [Time] in the "Neutral Buoyant Object Measurement" section. ______ 7) If you measured velocities with a hand-held flow meter, instead, fill out the [Velocity] in the "Cross Section and Velocity Measurements" section. ______ 8) If you did NOT measure any cross section data, fill out the [Predicted Stream Wetted Width] and [Predicted Wetted Cross Sectional Area] under the appropriate section where you took "Alternative Data Inputs to Cross Section and Velocity Measurements" -- Note: Data found on the*StageToAreaPredictor* spreadsheet ______ 9) After you have finished entering your data, go back to the "Rating Curve" sheet. | G23: 19 | I23: 7 | J23: 0.38 | K23: 0.02 | N23: Mean Transect Velocity (m/sec): | P23: =FloatDistance/MeanTravelTime*0.76 ->  | S23: 0.26 | T23: 0.0988 | U23: 0.001976
G24: 20 | H24: REW | I24: 7.32 | J24: 0.34 | K24: 0 | N24: 3. Area | S24: 0.16 | T24: 0.0544 | U24: 0
G25: 21 | N25: Measured Values from Cross Section
G26: 22 | N26: Stream Wetted Width (m): | P26: =MeasuredWettedWidth -> 4.52
G27: 23 | N27: Cross Sectional Area (m2): | P27: =MeasuredCrossSectionalArea -> 1.7082
G28: 24 | N28: --- OR ---
D29: Results | G29: 25 | N29: Estimated Values from Stage to Area Predictor
D30: Calculated Total Discharge (m3/s): | E30: =IF(HFMDischarge > 0, HFMDischarge, IF(AreaVelocityDischarge>0, AreaVelocityDischarge, NBODischarge)) -> 0.132946 | G30: 26 | N30: Predicted Wetted Cross Sectional Area (m2):
G31: 27 | N31: 4. Result
D32: Stream Wetted Width (m): | E32: =IF(WettedWidthFromSAP > 0, WettedWidthFromSAP, IF(MeasuredWettedWidth > 0, MeasuredWettedWidth, WettedWidthFromStage)) -> 4.52 | G32: 28 | N32: Total Discharge (m3/sec): | P32: =IF(CrossSectionalAreaFromStage>0, CrossSectionalAreaFromStage*MeanVelocity, CrossSectionalArea*MeanVelocity) -> 
G33: 29
D34: Stream Cross Sectional Area (m2): | E34: =IF(CrossSectionalAreaFromSAP > 0, CrossSectionalAreaFromSAP, IF(MeasuredCrossSectionalArea > 0, MeasuredCrossSectionalArea, CrossSectionalAreaFromStage)) -> 1.7082 | G34: 30
G35: 31 | N35: Handheld Flow Meter Measurement
G36: 32 | N36: 1. Velocity
G37: 33 | N37: Flow Velocity (m/sec): Measure at least 5 Times | O37: Velocity 1:
G38: 34 | O38: Velocity 2:
G39: 35 | O39: Velocity 3:
G40: 36 | O40: Velocity 4:
G41: 37 | O41: Velocity 5:
G42: 38 | O42: Velocity 6:
G43: 39 | O43: Velocity 7:
G44: 40 | O44: Velocity 8:
G45: 41 | O45: Velocity 9:
G46: 42 | O46: Velocity 10:
G47: 43
G48: 44 | N48: Mean Flow Meter Velocity (m/sec): | P48: =IF(NumberFlowTimes>0,AVERAGE(FlowTimes),0) -> 0
G49: 45 | N49: 2. Area
G50: 46 | N50: Estimated Values from Stage to Area Predictor
G51: 47 | N51: Predicted Wetted Cross Sectional Area (m2):
G52: 48 | N52: 3. Result
G53: 49 | N53: Total Discharge (m3/sec): | P53: =MeanFlowMeterVelocity*CrossSectionalAreaFromSAP -> 0
G54: 50
S55: =SUM(S$5:$S$54) -> 4.52 | T55: =SUM(T$5:$T$54) -> 1.7082 | U55: =SUM(U$5:$U$54) -> 0.132946 | V55: Total of Segments:

Sheet Discharge Event 4
B1: Discharge Event Entry Form | D1: Basic Metadata | H1: Cross Section and Velocity Measurements | N1: Alternative Data Inputs to Cross Section and Velocity Measurements | S1: Segment Calculations
B2: Starting-off Tutorial: 1) In the new "Discharge Day X" sheet, enter as much data from the "Stream Discharge Data" sheet into the WHITE boxes. -- Note: You should not be able to modify any of the grey or blue boxes. _____ 2) Completely fill out the "Basic Metadata" section. -- Note: Be sure to enter all times in EASTERN STANDARD TIME (EST; UTC-5); if the time recorded on your "Stream Discharge Data" sheet was in Eastern Daylight Time (EDT; UTC-4), you should subtract one hour from that time. _____ 3) Fill out the "Cross Section and Velocity Measurments" section with measurements only from right edge of water to left edge of water on your "Stream Dischrage Data" sheet. -- Note: Measurements between the water edges and the bank pins are not used to calculate discharge. _____ 4) If you measured a cross section, fill out [Points of Note], [Distance], [Water Depth] and [Comments] in the "Cross Section and Velocity Measurements" section. | G2: Point | S2: (Calculations from Cross Section and Velocity Measurements)
D3: Measurement Completed By: | E3: Matt Gisondi & Dave Bressler
H4: Points of note: | I4: Distance (m) | J4: Water Depth (m) | K4: Velocity (m/s) | L4: Comment | S4: Segment Width (m) | T4: Segment Area (m2) | U4: Segment Discharge (m3/s) | W4: Possible Notes
D5: Stream Name: | E5: Rocky Run | G5: 1 | H5: LEW | I5: 2.8 | J5: 0 | K5: 0 | N5: Neutral Buoyant Object Measurement | S5: =IF(I5="","", IF( OR(H5="REW",H5="LEW"), IF(I6="", (I5-I4)/2, (I6-I5)/2), ( (I5-I4)/2 + (I6-I5)/2) ) ) -> 0.25 | T5: =IF(I5="","",S5*J5) -> 0 | U5: =IF(K5="","",T5*K5) -> 0 | W5: REW
D6: Location: | E6: Upper Rocky, DS of Hwy 200 | G6: 2 | I6: 3.3 | J6: 0.16 | K6: 0.06 | N6: 1. Distance | S6: =IF(I6="","", IF( OR(H6="REW",H6="LEW"), IF(I7="", (I6-I5)/2, (I7-I6)/2), ( (I6-I5)/2 + (I7-I6)/2) ) ) -> 0.45 | T6: 0.072 | U6: 0.00432 | W6: LEW
D7: SiteID: | E7: ROCK_US3 | G7: 3 | I7: 3.7 | J7: 0.25 | K7: 0.13 | N7: Start of float to Transect (m): | S7: =IF(I7="","", IF( OR(H7="REW",H7="LEW"), IF(I8="", (I7-I6)/2, (I8-I7)/2), ( (I7-I6)/2 + (I8-I7)/2) ) ) -> 0.35 | T7: 0.0875 | U7: 0.011375 | W7: RPIN
D8: Station Latitude / Longitude: | E8: 39.816792, -75.550789 | G8: 4 | I8: 4 | J8: 0.29 | K8: 0.18 | N8: Transect to End of float (m): | S8: 0.25 | T8: 0.0725 | U8: 0.01305 | W8: LPIN
D9: Date: | E9: 2018-01-23 | G9: 5 | I9: 4.2 | J9: 0.28 | K9: 0.24 | N9: TOTAL Float Distance (m): | P9: =P7+P8 -> 0 | S9: 0.2 | T9: 0.056 | U9: 0.01344 | W9: RTOB
D10: Start Time in EST: | E10: 09:47:00 | G10: 6 | I10: 4.4 | J10: 0.37 | K10: 0.2 | N10: 2. Time | S10: 0.2 | T10: 0.074 | U10: 0.0148 | W10: LTOB
D11: Stop Time in EST: | E11: 10:15:00 | G11: 7 | I11: 4.6 | J11: 0.37 | K11: 0.29 | N11: Travel Time (sec): Measure at least 5 Times | O11: Time 1: | S11: 0.2 | T11: 0.074 | U11: 0.02146
D12: Staff Gauge Height (m): | E12: 0.395 | G12: 8 | I12: 4.8 | J12: 0.39 | K12: 0.33 | O12: Time 2: | S12: 0.2 | T12: 0.078 | U12: 0.02574
D13: Recorded Sensor Depth (mm): | E13: 277.3 | G13: 9 | I13: 5 | J13: 0.38 | K13: 0.24 | O13: Time 3: | S13: 0.2 | T13: 0.076 | U13: 0.01824
D14: Staff Gage/Sensor Offset (m): | E14: 0.1177 | G14: 10 | I14: 5.2 | J14: 0.56 | K14: 0.19 | O14: Time 4: | S14: 0.2 | T14: 0.112 | U14: 0.02128
D15: Velocity Meter (if applicable): | E15: Marsh-McBirney #2 | G15: 11 | I15: 5.4 | J15: 0.6 | K15: 0.13 | O15: Time 5: | S15: 0.2 | T15: 0.12 | U15: 0.0156
D16: Calibration Date of Velocity Meter: | E16: Fall 2017 | G16: 12 | I16: 5.6 | J16: 0.6 | K16: 0.08 | O16: Time 6: | S16: 0.2 | T16: 0.12 | U16: 0.0096
G17: 13 | I17: 5.8 | J17: 0.6 | K17: 0.02 | O17: Time 7: | S17: 0.2 | T17: 0.12 | U17: 0.0024
D18: Other Notes: | E18: Jeff C & Kim H did an additional measurement at the same time with the Swoffer #1 (Event 3) | G18: 14 | I18: 6 | J18: 0.6 | K18: 0.04 | O18: Time 8: | S18: 0.2 | T18: 0.12 | U18: 0.0048
G19: 15 | I19: 6.2 | J19: 0.42 | K19: 0.02 | O19: Time 9: | S19: 0.2 | T19: 0.084 | U19: 0.00168
G20: 16 | I20: 6.4 | J20: 0.32 | K20: 0.01 | L20: Estimate | O20: Time 10: | S20: 0.2 | T20: 0.064 | U20: 0.00064
G21: 17 | I21: 6.6 | J21: 0.38 | K21: -0.02 | L21: Swirling | S21: 0.2 | T21: 0.076 | U21: -0.00152
G22: 18 | I22: 6.8 | J22: 0.36 | K22: -0.03 | L22: Swirling | N22: Mean Travel Time (sec): | P22: =IF(NumberTravelTimes > 0, AVERAGE(TravelTimes), 0) -> 0 | S22: 0.2 | T22: 0.072 | U22: -0.00216
B23: _____ 5) If you measured velocities with a velocity meter, also fill out the [Velocity] in the "Cross Section and Velocity Measurements" section. ______ 6) If you used a neutrally buoyant object, instead, to measure velocity, fill out [Float Distance] and [Time] in the "Neutral Buoyant Object Measurement" section. ______ 7) If you measured velocities with a hand-held flow meter, instead, fill out the [Velocity] in the "Cross Section and Velocity Measurements" section. ______ 8) If you did NOT measure any cross section data, fill out the [Predicted Stream Wetted Width] and [Predicted Wetted Cross Sectional Area] under the appropriate section where you took "Alternative Data Inputs to Cross Section and Velocity Measurements" -- Note: Data found on the*StageToAreaPredictor* spreadsheet ______ 9) After you have finished entering your data, go back to the "Rating Curve" sheet. | G23: 19 | I23: 7 | J23: 0.34 | K23: -0.02 | L23: Swirling | N23: Mean Transect Velocity (m/sec): | P23: =FloatDistance/MeanTravelTime*0.76 ->  | S23: 0.2 | T23: 0.068 | U23: -0.00136
G24: 20 | I24: 7.2 | J24: 0.37 | K24: -0.05 | N24: 3. Area | S24: 0.185 | T24: 0.06845 | U24: -0.0034225
G25: 21 | H25: REW | I25: 7.37 | J25: 0.3 | K25: 0 | N25: Measured Values from Cross Section | S25: 0.085 | T25: 0.0255 | U25: 0
G26: 22 | N26: Stream Wetted Width (m): | P26: =MeasuredWettedWidth -> 4.57
G27: 23 | N27: Cross Sectional Area (m2): | P27: =MeasuredCrossSectionalArea -> 1.63995
G28: 24 | N28: --- OR ---
D29: Results | G29: 25 | N29: Estimated Values from Stage to Area Predictor
D30: Calculated Total Discharge (m3/s): | E30: =IF(HFMDischarge > 0, HFMDischarge, IF(AreaVelocityDischarge>0, AreaVelocityDischarge, NBODischarge)) -> 0.1699625 | G30: 26 | N30: Predicted Wetted Cross Sectional Area (m2):
G31: 27 | N31: 4. Result
D32: Stream Wetted Width (m): | E32: =IF(WettedWidthFromSAP > 0, WettedWidthFromSAP, IF(MeasuredWettedWidth > 0, MeasuredWettedWidth, WettedWidthFromStage)) -> 4.57 | G32: 28 | N32: Total Discharge (m3/sec): | P32: =IF(CrossSectionalAreaFromStage>0, CrossSectionalAreaFromStage*MeanVelocity, CrossSectionalArea*MeanVelocity) -> 
G33: 29
D34: Stream Cross Sectional Area (m2): | E34: =IF(CrossSectionalAreaFromSAP > 0, CrossSectionalAreaFromSAP, IF(MeasuredCrossSectionalArea > 0, MeasuredCrossSectionalArea, CrossSectionalAreaFromStage)) -> 1.63995 | G34: 30
G35: 31 | N35: Handheld Flow Meter Measurement
G36: 32 | N36: 1. Velocity
G37: 33 | N37: Flow Velocity (m/sec): Measure at least 5 Times | O37: Velocity 1:
G38: 34 | O38: Velocity 2:
G39: 35 | O39: Velocity 3:
G40: 36 | O40: Velocity 4:
G41: 37 | O41: Velocity 5:
G42: 38 | O42: Velocity 6:
G43: 39 | O43: Velocity 7:
G44: 40 | O44: Velocity 8:
G45: 41 | O45: Velocity 9:
G46: 42 | O46: Velocity 10:
G47: 43
G48: 44 | N48: Mean Flow Meter Velocity (m/sec): | P48: =IF(NumberFlowTimes>0,AVERAGE(FlowTimes),0) -> 0
G49: 45 | N49: 2. Area
G50: 46 | N50: Estimated Values from Stage to Area Predictor
G51: 47 | N51: Predicted Wetted Cross Sectional Area (m2):
G52: 48 | N52: 3. Result
G53: 49 | N53: Total Discharge (m3/sec): | P53: =MeanFlowMeterVelocity*CrossSectionalAreaFromSAP -> 0
G54: 50
S55: =SUM(S$5:$S$54) -> 4.57 | T55: =SUM(T$5:$T$54) -> 1.63995 | U55: =SUM(U$5:$U$54) -> 0.1699625 | V55: Total of Segments:

Sheet Discharge Event 5
B1: Discharge Event Entry Form | D1: Basic Metadata | H1: Cross Section and Velocity Measurements | N1: Alternative Data Inputs to Cross Section and Velocity Measurements | S1: Segment Calculations
B2: Starting-off Tutorial: 1) In the new "Discharge Day X" sheet, enter as much data from the "Stream Discharge Data" sheet into the WHITE boxes. -- Note: You should not be able to modify any of the grey or blue boxes. _____ 2) Completely fill out the "Basic Metadata" section. -- Note: Be sure to enter all times in EASTERN STANDARD TIME (EST; UTC-5); if the time recorded on your "Stream Discharge Data" sheet was in Eastern Daylight Time (EDT; UTC-4), you should subtract one hour from that time. _____ 3) Fill out the "Cross Section and Velocity Measurments" section with measurements only from right edge of water to left edge of water on your "Stream Dischrage Data" sheet. -- Note: Measurements between the water edges and the bank pins are not used to calculate discharge. _____ 4) If you measured a cross section, fill out [Points of Note], [Distance], [Water Depth] and [Comments] in the "Cross Section and Velocity Measurements" section. | G2: Point | S2: (Calculations from Cross Section and Velocity Measurements)
D3: Measurement Completed By: | E3: Jeff C & Kim H
H4: Points of note: | I4: Distance (m) | J4: Water Depth (m) | K4: Velocity (m/s) | L4: Comment | S4: Segment Width (m) | T4: Segment Area (m2) | U4: Segment Discharge (m3/s) | W4: Possible Notes
D5: Stream Name: | E5: Rocky Run | G5: 1 | H5: LEW | I5: 2.8 | J5: 0.17 | K5: 0.02 | N5: Neutral Buoyant Object Measurement | S5: =IF(I5="","", IF( OR(H5="REW",H5="LEW"), IF(I6="", (I5-I4)/2, (I6-I5)/2), ( (I5-I4)/2 + (I6-I5)/2) ) ) -> 0.25 | T5: =IF(I5="","",S5*J5) -> 0.0425 | U5: =IF(K5="","",T5*K5) -> 0.00085 | W5: REW
D6: Location: | E6: Upper Rocky, DS of Hwy 200 | G6: 2 | I6: 3.3 | J6: 0.14 | K6: 0.02 | N6: 1. Distance | S6: =IF(I6="","", IF( OR(H6="REW",H6="LEW"), IF(I7="", (I6-I5)/2, (I7-I6)/2), ( (I6-I5)/2 + (I7-I6)/2) ) ) -> 0.35 | T6: 0.049 | U6: 0.00098 | W6: LEW
D7: SiteID: | E7: ROCK_US3 | G7: 3 | I7: 3.5 | J7: 0.22 | K7: 0.15 | N7: Start of float to Transect (m): | S7: =IF(I7="","", IF( OR(H7="REW",H7="LEW"), IF(I8="", (I7-I6)/2, (I8-I7)/2), ( (I7-I6)/2 + (I8-I7)/2) ) ) -> 0.2 | T7: 0.044 | U7: 0.0066 | W7: RPIN
D8: Station Latitude / Longitude: | E8: 39.816792, -75.550789 | G8: 4 | I8: 3.7 | J8: 0.23 | K8: 0.15 | N8: Transect to End of float (m): | S8: 0.2 | T8: 0.046 | U8: 0.0069 | W8: LPIN
D9: Date: | E9: 2018-01-23 | G9: 5 | I9: 3.9 | J9: 0.38 | K9: 0.17 | N9: TOTAL Float Distance (m): | P9: =P7+P8 -> 0 | S9: 0.2 | T9: 0.076 | U9: 0.01292 | W9: RTOB
D10: Start Time in EST: | E10: 11:05:00 | G10: 6 | I10: 4.1 | J10: 0.31 | K10: 0.15 | N10: 2. Time | S10: 0.2 | T10: 0.062 | U10: 0.0093 | W10: LTOB
D11: Stop Time in EST: | E11: 11:45:00 | G11: 7 | I11: 4.3 | J11: 0.34 | K11: 0.16 | N11: Travel Time (sec): Measure at least 5 Times | O11: Time 1: | S11: 0.2 | T11: 0.068 | U11: 0.01088
D12: Staff Gauge Height (m): | E12: 0.45 | G12: 8 | I12: 4.5 | J12: 0.37 | K12: 0.25 | O12: Time 2: | S12: 0.2 | T12: 0.074 | U12: 0.0185
D13: Recorded Sensor Depth (mm): | E13: 339 | G13: 9 | I13: 4.7 | J13: 0.38 | K13: 0.15 | O13: Time 3: | S13: 0.2 | T13: 0.076 | U13: 0.0114
D14: Staff Gage/Sensor Offset (m): | E14: 0.111 | G14: 10 | I14: 4.9 | J14: 0.42 | K14: 0.21 | O14: Time 4: | S14: 0.2 | T14: 0.084 | U14: 0.01764
D15: Velocity Meter (if applicable): | E15: Swoffer #1 | G15: 11 | I15: 5.1 | J15: 0.49 | K15: 0.12 | O15: Time 5: | S15: 0.2 | T15: 0.098 | U15: 0.01176
D16: Calibration Date of Velocity Meter: | E16: Fall 2017 | G16: 12 | I16: 5.3 | J16: 0.55 | K16: 0.11 | O16: Time 6: | S16: 0.2 | T16: 0.11 | U16: 0.0121
G17: 13 | I17: 5.5 | J17: 0.6 | K17: 0.06 | O17: Time 7: | S17: 0.2 | T17: 0.12 | U17: 0.0072
D18: Other Notes: | E18: Dave B & Matt G did an additional measurement at the same time with the MM #2 (Event 6). Unsure of reliableness of data since water level rose towards end of measurements | G18: 14 | I18: 5.7 | J18: 0.64 | K18: 0.05 | O18: Time 8: | S18: 0.2 | T18: 0.128 | U18: 0.0064
G19: 15 | I19: 5.9 | J19: 0.56 | K19: 0.03 | O19: Time 9: | S19: 0.2 | T19: 0.112 | U19: 0.00336
G20: 16 | I20: 6.1 | J20: 0.7 | K20: 0.02 | O20: Time 10: | S20: 0.2 | T20: 0.14 | U20: 0.0028
G21: 17 | I21: 6.3 | J21: 0.41 | K21: 0.01 | S21: 0.2 | T21: 0.082 | U21: 0.00082
G22: 18 | I22: 6.5 | J22: 0.42 | K22: 0.01 | N22: Mean Travel Time (sec): | P22: =IF(NumberTravelTimes > 0, AVERAGE(TravelTimes), 0) -> 0 | S22: 0.2 | T22: 0.084 | U22: 0.00084
B23: _____ 5) If you measured velocities with a velocity meter, also fill out the [Velocity] in the "Cross Section and Velocity Measurements" section. ______ 6) If you used a neutrally buoyant object, instead, to measure velocity, fill out [Float Distance] and [Time] in the "Neutral Buoyant Object Measurement" section. ______ 7) If you measured velocities with a hand-held flow meter, instead, fill out the [Velocity] in the "Cross Section and Velocity Measurements" section. ______ 8) If you did NOT measure any cross section data, fill out the [Predicted Stream Wetted Width] and [Predicted Wetted Cross Sectional Area] under the appropriate section where you took "Alternative Data Inputs to Cross Section and Velocity Measurements" -- Note: Data found on the*StageToAreaPredictor* spreadsheet ______ 9) After you have finished entering your data, go back to the "Rating Curve" sheet. | G23: 19 | I23: 6.7 | J23: 0.42 | K23: 0 | N23: Mean Transect Velocity (m/sec): | P23: =FloatDistance/MeanTravelTime*0.76 ->  | S23: 0.2 | T23: 0.084 | U23: 0
G24: 20 | I24: 6.9 | J24: 0.41 | K24: 0.02 | N24: 3. Area | S24: 0.2 | T24: 0.082 | U24: 0.00164
G25: 21 | H25: REW | I25: 7.1 | J25: 0.42 | K25: 0 | N25: Measured Values from Cross Section | S25: 0.1 | T25: 0.042 | U25: 0
G26: 22 | N26: Stream Wetted Width (m): | P26: =MeasuredWettedWidth -> 4.3
G27: 23 | N27: Cross Sectional Area (m2): | P27: =MeasuredCrossSectionalArea -> 1.7035
G28: 24 | N28: --- OR ---
D29: Results | G29: 25 | N29: Estimated Values from Stage to Area Predictor
D30: Calculated Total Discharge (m3/s): | E30: =IF(HFMDischarge > 0, HFMDischarge, IF(AreaVelocityDischarge>0, AreaVelocityDischarge, NBODischarge)) -> 0.14289 | G30: 26 | N30: Predicted Wetted Cross Sectional Area (m2):
G31: 27 | N31: 4. Result
D32: Stream Wetted Width (m): | E32: =IF(WettedWidthFromSAP > 0, WettedWidthFromSAP, IF(MeasuredWettedWidth > 0, MeasuredWettedWidth, WettedWidthFromStage)) -> 4.3 | G32: 28 | N32: Total Discharge (m3/sec): | P32: =IF(CrossSectionalAreaFromStage>0, CrossSectionalAreaFromStage*MeanVelocity, CrossSectionalArea*MeanVelocity) -> 
G33: 29
D34: Stream Cross Sectional Area (m2): | E34: =IF(CrossSectionalAreaFromSAP > 0, CrossSectionalAreaFromSAP, IF(MeasuredCrossSectionalArea > 0, MeasuredCrossSectionalArea, CrossSectionalAreaFromStage)) -> 1.7035 | G34: 30
G35: 31 | N35: Handheld Flow Meter Measurement
G36: 32 | N36: 1. Velocity
G37: 33 | N37: Flow Velocity (m/sec): Measure at least 5 Times | O37: Velocity 1:
G38: 34 | O38: Velocity 2:
G39: 35 | O39: Velocity 3:
G40: 36 | O40: Velocity 4:
G41: 37 | O41: Velocity 5:
G42: 38 | O42: Velocity 6:
G43: 39 | O43: Velocity 7:
G44: 40 | O44: Velocity 8:
G45: 41 | O45: Velocity 9:
G46: 42 | O46: Velocity 10:
G47: 43
G48: 44 | N48: Mean Flow Meter Velocity (m/sec): | P48: =IF(NumberFlowTimes>0,AVERAGE(FlowTimes),0) -> 0
G49: 45 | N49: 2. Area
G50: 46 | N50: Estimated Values from Stage to Area Predictor
G51: 47 | N51: Predicted Wetted Cross Sectional Area (m2):
G52: 48 | N52: 3. Result
G53: 49 | N53: Total Discharge (m3/sec): | P53: =MeanFlowMeterVelocity*CrossSectionalAreaFromSAP -> 0
G54: 50
S55: =SUM(S$5:$S$54) -> 4.3 | T55: =SUM(T$5:$T$54) -> 1.7035 | U55: =SUM(U$5:$U$54) -> 0.14289 | V55: Total of Segments:

Sheet Discharge Event 6
B1: Discharge Event Entry Form | D1: Basic Metadata | H1: Cross Section and Velocity Measurements | N1: Alternative Data Inputs to Cross Section and Velocity Measurements | S1: Segment Calculations
B2: Starting-off Tutorial: 1) In the new "Discharge Day X" sheet, enter as much data from the "Stream Discharge Data" sheet into the WHITE boxes. -- Note: You should not be able to modify any of the grey or blue boxes. _____ 2) Completely fill out the "Basic Metadata" section. -- Note: Be sure to enter all times in EASTERN STANDARD TIME (EST; UTC-5); if the time recorded on your "Stream Discharge Data" sheet was in Eastern Daylight Time (EDT; UTC-4), you should subtract one hour from that time. _____ 3) Fill out the "Cross Section and Velocity Measurments" section with measurements only from right edge of water to left edge of water on your "Stream Dischrage Data" sheet. -- Note: Measurements between the water edges and the bank pins are not used to calculate discharge. _____ 4) If you measured a cross section, fill out [Points of Note], [Distance], [Water Depth] and [Comments] in the "Cross Section and Velocity Measurements" section. | G2: Point | S2: (Calculations from Cross Section and Velocity Measurements)
D3: Measurement Completed By: | E3: Matt G & Dave B
H4: Points of note: | I4: Distance (m) | J4: Water Depth (m) | K4: Velocity (m/s) | L4: Comment | S4: Segment Width (m) | T4: Segment Area (m2) | U4: Segment Discharge (m3/s) | W4: Possible Notes
D5: Stream Name: | E5: Rocky Run | G5: 1 | H5: LEW | I5: 2.8 | J5: 0.11 | K5: -0.02 | N5: Neutral Buoyant Object Measurement | S5: =IF(I5="","", IF( OR(H5="REW",H5="LEW"), IF(I6="", (I5-I4)/2, (I6-I5)/2), ( (I5-I4)/2 + (I6-I5)/2) ) ) -> 0.25 | T5: =IF(I5="","",S5*J5) -> 0.0275 | U5: =IF(K5="","",T5*K5) -> -0.00055 | W5: REW
D6: Location: | E6: Upper Rocky, DS of Hwy 200 | G6: 2 | I6: 3.3 | J6: 0.14 | K6: 0.01 | N6: 1. Distance | S6: =IF(I6="","", IF( OR(H6="REW",H6="LEW"), IF(I7="", (I6-I5)/2, (I7-I6)/2), ( (I6-I5)/2 + (I7-I6)/2) ) ) -> 0.35 | T6: 0.049 | U6: 0.00049 | W6: LEW
D7: SiteID: | E7: ROCK_US3 | G7: 3 | I7: 3.5 | J7: 0.2 | K7: 0.11 | N7: Start of float to Transect (m): | S7: =IF(I7="","", IF( OR(H7="REW",H7="LEW"), IF(I8="", (I7-I6)/2, (I8-I7)/2), ( (I7-I6)/2 + (I8-I7)/2) ) ) -> 0.2 | T7: 0.04 | U7: 0.0044 | W7: RPIN
D8: Station Latitude / Longitude: | E8: 39.816792, -75.550789 | G8: 4 | I8: 3.7 | J8: 0.2 | K8: 0.16 | N8: Transect to End of float (m): | S8: 0.2 | T8: 0.04 | U8: 0.0064 | W8: LPIN
D9: Date: | E9: 2018-01-23 | G9: 5 | I9: 3.9 | J9: 0.18 | K9: 0.25 | N9: TOTAL Float Distance (m): | P9: =P7+P8 -> 0 | S9: 0.2 | T9: 0.036 | U9: 0.009 | W9: RTOB
D10: Start Time in EST: | E10: 11:05:00 | G10: 6 | I10: 4.1 | J10: 0.26 | K10: 0.25 | N10: 2. Time | S10: 0.2 | T10: 0.052 | U10: 0.013 | W10: LTOB
D11: Stop Time in EST: | E11: 11:40:00 | G11: 7 | I11: 4.3 | J11: 0.35 | K11: 0.13 | N11: Travel Time (sec): Measure at least 5 Times | O11: Time 1: | S11: 0.2 | T11: 0.07 | U11: 0.0091
D12: Staff Gauge Height (m): | E12: 0.37 | G12: 8 | I12: 4.5 | J12: 0.3 | K12: 0.25 | O12: Time 2: | S12: 0.2 | T12: 0.06 | U12: 0.015
D13: Recorded Sensor Depth (mm): | E13: 246 | G13: 9 | I13: 4.7 | J13: 0.35 | K13: 0.3 | O13: Time 3: | S13: 0.2 | T13: 0.07 | U13: 0.021
D14: Staff Gage/Sensor Offset (m): | E14: 0.124 | G14: 10 | I14: 4.9 | J14: 0.38 | K14: 0.25 | O14: Time 4: | S14: 0.2 | T14: 0.076 | U14: 0.019
D15: Velocity Meter (if applicable): | E15: Marsh-McBirney #2 | G15: 11 | I15: 5.1 | J15: 0.52 | K15: 0.16 | O15: Time 5: | S15: 0.2 | T15: 0.104 | U15: 0.01664
D16: Calibration Date of Velocity Meter: | E16: Fall 2017 | G16: 12 | I16: 5.3 | J16: 0.53 | K16: 0.1 | O16: Time 6: | S16: 0.2 | T16: 0.106 | U16: 0.0106
G17: 13 | I17: 5.5 | J17: 0.58 | K17: 0.06 | O17: Time 7: | S17: 0.2 | T17: 0.116 | U17: 0.00696
D18: Other Notes: | E18: Jeff C & Kim H did an additional measurement at the same time with the Swoffer #1 (Event 5).Unsure of reliableness of data since water level rose towards end of measurements | G18: 14 | I18: 5.7 | J18: 0.58 | K18: 0.03 | O18: Time 8: | S18: 0.2 | T18: 0.116 | U18: 0.00348
G19: 15 | I19: 5.9 | J19: 0.58 | K19: 0.01 | O19: Time 9: | S19: 0.2 | T19: 0.116 | U19: 0.00116
G20: 16 | I20: 6.1 | J20: 0.63 | K20: 0 | O20: Time 10: | S20: 0.2 | T20: 0.126 | U20: 0
G21: 17 | I21: 6.3 | J21: 0.38 | K21: 0 | S21: 0.2 | T21: 0.076 | U21: 0
G22: 18 | I22: 6.5 | J22: 0.34 | K22: -0.01 | N22: Mean Travel Time (sec): | P22: =IF(NumberTravelTimes > 0, AVERAGE(TravelTimes), 0) -> 0 | S22: 0.2 | T22: 0.068 | U22: -0.00068
B23: _____ 5) If you measured velocities with a velocity meter, also fill out the [Velocity] in the "Cross Section and Velocity Measurements" section. ______ 6) If you used a neutrally buoyant object, instead, to measure velocity, fill out [Float Distance] and [Time] in the "Neutral Buoyant Object Measurement" section. ______ 7) If you measured velocities with a hand-held flow meter, instead, fill out the [Velocity] in the "Cross Section and Velocity Measurements" section. ______ 8) If you did NOT measure any cross section data, fill out the [Predicted Stream Wetted Width] and [Predicted Wetted Cross Sectional Area] under the appropriate section where you took "Alternative Data Inputs to Cross Section and Velocity Measurements" -- Note: Data found on the*StageToAreaPredictor* spreadsheet ______ 9) After you have finished entering your data, go back to the "Rating Curve" sheet. | G23: 19 | I23: 6.7 | J23: 0.36 | K23: -0.02 | N23: Mean Transect Velocity (m/sec): | P23: =FloatDistance/MeanTravelTime*0.76 ->  | S23: 0.2 | T23: 0.072 | U23: -0.00144
G24: 20 | I24: 6.9 | J24: 0.32 | K24: -0.03 | N24: 3. Area | S24: 0.2 | T24: 0.064 | U24: -0.00192
G25: 21 | I25: 7.1 | J25: 0.4 | K25: -0.02 | N25: Measured Values from Cross Section | S25: 0.23 | T25: 0.092 | U25: -0.00184
G26: 22 | H26: REW | I26: 7.36 | J26: 0.35 | K26: -0.05 | N26: Stream Wetted Width (m): | P26: =MeasuredWettedWidth -> 4.56 | S26: 0.13 | T26: 0.0455 | U26: -0.002275
G27: 23 | N27: Cross Sectional Area (m2): | P27: =MeasuredCrossSectionalArea -> 1.622
G28: 24 | N28: --- OR ---
D29: Results | G29: 25 | N29: Estimated Values from Stage to Area Predictor
D30: Calculated Total Discharge (m3/s): | E30: =IF(HFMDischarge > 0, HFMDischarge, IF(AreaVelocityDischarge>0, AreaVelocityDischarge, NBODischarge)) -> 0.127525 | G30: 26 | N30: Predicted Wetted Cross Sectional Area (m2):
G31: 27 | N31: 4. Result
D32: Stream Wetted Width (m): | E32: =IF(WettedWidthFromSAP > 0, WettedWidthFromSAP, IF(MeasuredWettedWidth > 0, MeasuredWettedWidth, WettedWidthFromStage)) -> 4.56 | G32: 28 | N32: Total Discharge (m3/sec): | P32: =IF(CrossSectionalAreaFromStage>0, CrossSectionalAreaFromStage*MeanVelocity, CrossSectionalArea*MeanVelocity) -> 
G33: 29
D34: Stream Cross Sectional Area (m2): | E34: =IF(CrossSectionalAreaFromSAP > 0, CrossSectionalAreaFromSAP, IF(MeasuredCrossSectionalArea > 0, MeasuredCrossSectionalArea, CrossSectionalAreaFromStage)) -> 1.622 | G34: 30
G35: 31 | N35: Handheld Flow Meter Measurement
G36: 32 | N36: 1. Velocity
G37: 33 | N37: Flow Velocity (m/sec): Measure at least 5 Times | O37: Velocity 1:
G38: 34 | O38: Velocity 2:
G39: 35 | O39: Velocity 3:
G40: 36 | O40: Velocity 4:
G41: 37 | O41: Velocity 5:
G42: 38 | O42: Velocity 6:
G43: 39 | O43: Velocity 7:
G44: 40 | O44: Velocity 8:
G45: 41 | O45: Velocity 9:
G46: 42 | O46: Velocity 10:
G47: 43
G48: 44 | N48: Mean Flow Meter Velocity (m/sec): | P48: =IF(NumberFlowTimes>0,AVERAGE(FlowTimes),0) -> 0
G49: 45 | N49: 2. Area
G50: 46 | N50: Estimated Values from Stage to Area Predictor
G51: 47 | N51: Predicted Wetted Cross Sectional Area (m2):
G52: 48 | N52: 3. Result
G53: 49 | N53: Total Discharge (m3/sec): | P53: =MeanFlowMeterVelocity*CrossSectionalAreaFromSAP -> 0
G54: 50
S55: =SUM(S$5:$S$54) -> 4.56 | T55: =SUM(T$5:$T$54) -> 1.622 | U55: =SUM(U$5:$U$54) -> 0.127525 | V55: Total of Segments:

Sheet Blank Discharge Form (hidden)
B1: Discharge Event Entry Form | D1: Basic Metadata | H1: Cross Section and Velocity Measurements | N1: Alternative Data Inputs to Cross Section and Velocity Measurements | S1: Segment Calculations
B2: Starting-off Tutorial: 1) In the new "Discharge Day X" sheet, enter as much data from the "Stream Discharge Data" sheet into the WHITE boxes. -- Note: You should not be able to modify any of the grey or blue boxes. _____ 2) Completely fill out the "Basic Metadata" section. -- Note: Be sure to enter all times in EASTERN STANDARD TIME (EST; UTC-5); if the time recorded on your "Stream Discharge Data" sheet was in Eastern Daylight Time (EDT; UTC-4), you should subtract one hour from that time. _____ 3) Fill out the "Cross Section and Velocity Measurments" section with measurements only from right edge of water to left edge of water on your "Stream Dischrage Data" sheet. -- Note: Measurements between the water edges and the bank pins are not used to calculate discharge. _____ 4) If you measured a cross section, fill out [Points of Note], [Distance], [Water Depth] and [Comments] in the "Cross Section and Velocity Measurements" section. | G2: Point | S2: (Calculations from Cross Section and Velocity Measurements)
D3: Measurement Completed By:
H4: Points of note: | I4: Distance (m) | J4: Water Depth (m) | K4: Velocity (m/s) | L4: Comment | S4: Segment Width (m) | T4: Segment Area (m2) | U4: Segment Discharge (m3/s) | W4: Possible Notes
D5: Stream Name: | G5: 1 | N5: Neutral Buoyant Object Measurement | S5: =IF(I5="","", IF( OR(H5="REW",H5="LEW"), IF(I6="", (I5-I4)/2, (I6-I5)/2), ( (I5-I4)/2 + (I6-I5)/2) ) ) ->  | T5: =IF(I5="","",S5*J5) ->  | U5: =IF(K5="","",T5*K5) ->  | W5: REW
D6: Location: | G6: 2 | N6: 1. Distance | S6: =IF(I6="","", IF( OR(H6="REW",H6="LEW"), IF(I7="", (I6-I5)/2, (I7-I6)/2), ( (I6-I5)/2 + (I7-I6)/2) ) ) ->  | W6: LEW
D7: SiteID: | G7: 3 | N7: Start of float to Transect (m): | S7: =IF(I7="","", IF( OR(H7="REW",H7="LEW"), IF(I8="", (I7-I6)/2, (I8-I7)/2), ( (I7-I6)/2 + (I8-I7)/2) ) ) ->  | W7: RPIN
D8: Station Latitude / Longitude: | G8: 4 | N8: Transect to End of float (m): | W8: LPIN
D9: Date: | G9: 5 | N9: TOTAL Float Distance (m): | P9: =P7+P8 -> 0 | W9: RTOB
D10: Start Time in EST: | G10: 6 | N10: 2. Time | W10: LTOB
D11: Stop Time in EST: | G11: 7 | N11: Travel Time (sec): Measure at least 5 Times | O11: Time 1:
D12: Staff Gauge Height (m): | G12: 8 | O12: Time 2:
D13: Recorded Sensor Depth (mm): | G13: 9 | O13: Time 3:
D14: Staff Gage/Sensor Offset (m): | G14: 10 | O14: Time 4:
D15: Velocity Meter (if applicable): | G15: 11 | O15: Time 5:
D16: Calibration Date of Velocity Meter: | G16: 12 | O16: Time 6:
G17: 13 | O17: Time 7:
D18: Other Notes: | G18: 14 | O18: Time 8:
G19: 15 | O19: Time 9:
G20: 16 | O20: Time 10:
G21: 17
G22: 18 | N22: Mean Travel Time (sec): | P22: =IF(NumberTravelTimes > 0, AVERAGE(TravelTimes), 0) -> 0
B23: _____ 5) If you measured velocities with a velocity meter, also fill out the [Velocity] in the "Cross Section and Velocity Measurements" section. ______ 6) If you used a neutrally buoyant object, instead, to measure velocity, fill out [Float Distance] and [Time] in the "Neutral Buoyant Object Measurement" section. ______ 7) If you measured velocities with a hand-held flow meter, instead, fill out the [Velocity] in the "Cross Section and Velocity Measurements" section. ______ 8) If you did NOT measure any cross section data, fill out the [Predicted Stream Wetted Width] and [Predicted Wetted Cross Sectional Area] under the appropriate section where you took "Alternative Data Inputs to Cross Section and Velocity Measurements" -- Note: Data found on the*StageToAreaPredictor* spreadsheet ______ 9) After you have finished entering your data, go back to the "Rating Curve" sheet. | G23: 19 | N23: Mean Transect Velocity (m/sec): | P23: =FloatDistance/MeanTravelTime*0.76 -> 
G24: 20 | N24: 3. Area
G25: 21 | N25: Measured Values from Cross Section
G26: 22 | N26: Stream Wetted Width (m): | P26: =MeasuredWettedWidth -> 0
G27: 23 | N27: Cross Sectional Area (m2): | P27: =MeasuredCrossSectionalArea -> 0
G28: 24 | N28: --- OR ---
D29: Results | G29: 25 | N29: Estimated Values from Stage to Area Predictor
D30: Calculated Total Discharge (m3/s): | E30: =IF(HFMDischarge > 0, HFMDischarge, IF(AreaVelocityDischarge>0, AreaVelocityDischarge, NBODischarge)) ->  | G30: 26 | N30: Predicted Wetted Cross Sectional Area (m2):
G31: 27 | N31: 4. Result
D32: Stream Wetted Width (m): | E32: =IF(WettedWidthFromSAP > 0, WettedWidthFromSAP, IF(MeasuredWettedWidth > 0, MeasuredWettedWidth, WettedWidthFromStage)) -> 0 | G32: 28 | N32: Total Discharge (m3/sec): | P32: =IF(CrossSectionalAreaFromStage>0, CrossSectionalAreaFromStage*MeanVelocity, CrossSectionalArea*MeanVelocity) -> 
G33: 29
D34: Stream Cross Sectional Area (m2): | E34: =IF(CrossSectionalAreaFromSAP > 0, CrossSectionalAreaFromSAP, IF(MeasuredCrossSectionalArea > 0, MeasuredCrossSectionalArea, CrossSectionalAreaFromStage)) -> 0 | G34: 30
G35: 31 | N35: Handheld Flow Meter Measurement
G36: 32 | N36: 1. Velocity
G37: 33 | N37: Flow Velocity (m/sec): Measure at least 5 Times | O37: Velocity 1: | T37: =IF(I37="","",S37*J37) ->  | U37: =IF(K37="","",T37*K37) -> 
G38: 34 | O38: Velocity 2:
G39: 35 | O39: Velocity 3:
G40: 36 | O40: Velocity 4:
G41: 37 | O41: Velocity 5:
G42: 38 | O42: Velocity 6:
G43: 39 | O43: Velocity 7:
G44: 40 | O44: Velocity 8:
G45: 41 | O45: Velocity 9:
G46: 42 | O46: Velocity 10:
G47: 43
G48: 44 | N48: Mean Flow Meter Velocity (m/sec): | P48: =IF(NumberFlowTimes>0,AVERAGE(FlowTimes),0) -> 0
G49: 45 | N49: 2. Area
G50: 46 | N50: Estimated Values from Stage to Area Predictor
G51: 47 | N51: Predicted Wetted Cross Sectional Area (m2):
G52: 48 | N52: 3. Result
G53: 49 | N53: Total Discharge (m3/sec): | P53: =MeanFlowMeterVelocity*CrossSectionalAreaFromSAP -> 0
G54: 50
S55: =SUM(S$5:$S$54) -> 0 | T55: =SUM(T$5:$T$54) -> 0 | U55: =SUM(U$5:$U$54) -> 0 | V55: Total of Segments:
